[Event "Late-Titled-Tuesday-Blitz-February-13-2024"]
[Site "Chess.com"]
[Date "2024.02.13"]
[Round "6"]
[White "A-Fier"]
[Black "Shankland"]
[Result "0-1"]
[WhiteElo "2774"]
[BlackElo "2948"]
[TimeControl "180+1"]
[EndTime "15:07:10 PST"]
[Termination "Shankland won by resignation"]

1. e4 {[%clk 0:03:00.9]} 1... c5 {[%clk 0:02:59.8]} 2. Nf3 {[%clk 0:03:01.1]}
2... d6 {[%clk 0:03:00.3]} 3. d4 {[%clk 0:03:01.5]} 3... cxd4 {[%clk 0:03:01]}
4. Nxd4 {[%clk 0:03:02.2]} 4... Nf6 {[%clk 0:03:01.4]} 5. Nc3 {[%clk 0:03:03]}
5... Nc6 {[%clk 0:03:01.9]} 6. Bc4 {[%clk 0:03:00.7]} 6... Qb6 {[%clk
0:03:00.9]} 7. Nxc6 {[%clk 0:02:59.7]} 7... bxc6 {[%clk 0:03:00.7]} 8. O-O
{[%clk 0:03:00]} 8... g6 {[%clk 0:03:00.6]} 9. Qe1 {[%clk 0:02:53.6]} 9... Qc7
{[%clk 0:02:58.7]} 10. b3 {[%clk 0:02:53.6]} 10... Bg7 {[%clk 0:02:58.6]} 11.
Bb2 {[%clk 0:02:54.2]} 11... O-O {[%clk 0:02:58.3]} 12. Rd1 {[%clk 0:02:54.7]}
12... Bb7 {[%clk 0:02:57.6]} 13. f4 {[%clk 0:02:53.8]} 13... Nxe4 {[%clk
0:02:36.3]} 14. Qxe4 {[%clk 0:02:32.4]} 14... d5 {[%clk 0:02:35.6]} 15. Qe2
{[%clk 0:02:33]} 15... dxc4 {[%clk 0:02:35.6]} 16. Qxc4 {[%clk 0:02:33.9]} 16...
Qb6+ {[%clk 0:02:33.5]} 17. Kh1 {[%clk 0:02:33.8]} 17... Ba6 {[%clk 0:02:33.4]}
18. Qe4 {[%clk 0:02:24.7]} 18... Bxf1 {[%clk 0:02:32.8]} 19. Rxf1 {[%clk
0:02:25.6]} 19... Rad8 {[%clk 0:02:28.7]} 20. Na4 {[%clk 0:02:19.9]} 20... Qa6
{[%clk 0:02:22.5]} 21. Ra1 {[%clk 0:02:13.5]} 21... Bxb2 {[%clk 0:02:19.1]} 22.
Nxb2 {[%clk 0:02:14.4]} 22... Rd2 {[%clk 0:02:17]} 23. h3 {[%clk 0:02:11.5]}
23... e6 {[%clk 0:02:09.9]} 24. Nc4 {[%clk 0:02:10.9]} 24... Rd5 {[%clk
0:02:07.3]} 25. a4 {[%clk 0:02:11.3]} 25... Rfd8 {[%clk 0:02:06.6]} 26. Kh2
{[%clk 0:02:11.5]} 26... Qc8 {[%clk 0:02:05.2]} 27. Re1 {[%clk 0:02:11.3]} 27...
Qc7 {[%clk 0:02:03.9]} 28. Qe3 {[%clk 0:02:07.7]} 28... Rd4 {[%clk 0:02:03.1]}
29. Ne5 {[%clk 0:02:08.1]} 29... c5 {[%clk 0:02:00.4]} 30. Re2 {[%clk
0:02:08.3]} 30... Kg7 {[%clk 0:01:40.8]} 31. Qg3 {[%clk 0:02:07.6]} 31... R8d5
{[%clk 0:01:36.8]} 32. h4 {[%clk 0:01:42.3]} 32... f6 {[%clk 0:01:34.4]} 33. Nd3
{[%clk 0:01:42.1]} 33... Qd6 {[%clk 0:01:33]} 34. Qg4 {[%clk 0:01:27.1]} 34...
Kf7 {[%clk 0:01:19.7]} 35. g3 {[%clk 0:01:25.9]} 35... c4 {[%clk 0:01:16.4]} 36.
bxc4 {[%clk 0:01:26.8]} 36... Rxc4 {[%clk 0:01:17]} 37. Qf3 {[%clk 0:01:20.3]}
37... Rxa4 {[%clk 0:01:11.6]} 38. Kh3 {[%clk 0:01:17.4]} 38... Kg7 {[%clk
0:01:10.6]} 39. Qe3 {[%clk 0:01:14.5]} 39... Kf7 {[%clk 0:01:05.5]} 40. Qf3
{[%clk 0:01:05.7]} 40... Qd7 {[%clk 0:01:00.9]} 41. Rf2 {[%clk 0:01:03.7]} 41...
e5+ {[%clk 0:00:57.7]} 42. f5 {[%clk 0:00:53.5]} 42... e4 {[%clk 0:00:57]} 43.
Qg4 {[%clk 0:00:54.1]} 43... Rxf5 {[%clk 0:00:50.5]} 44. Nc5 {[%clk 0:00:54.1]}
44... h5 {[%clk 0:00:44.5]} 45. Qxf5 {[%clk 0:00:54.4]} 45... gxf5 {[%clk
0:00:33.9]} 46. Nxd7 {[%clk 0:00:54.3]} 46... Rc4 {[%clk 0:00:34.6]} 47. Rd2
{[%clk 0:00:41.2]} 47... a5 {[%clk 0:00:28.8]} 48. Nb6 {[%clk 0:00:40.9]} 48...
Rc6 {[%clk 0:00:26.5]} 49. Na4 {[%clk 0:00:40.8]} 49... Ke6 {[%clk 0:00:24.7]}
50. Kg2 {[%clk 0:00:40.5]} 50... Ke5 {[%clk 0:00:22]} 51. Kf2 {[%clk 0:00:40.5]}
51... f4 {[%clk 0:00:21.4]} 52. gxf4+ {[%clk 0:00:37]} 52... Kxf4 {[%clk
0:00:22.3]} 53. c3 {[%clk 0:00:37.9]} 53... e3+ {[%clk 0:00:21.2]} 0-1

[Event "Late-Titled-Tuesday-Blitz-February-13-2024"]
[Site "Chess.com"]
[Date "2024.02.13"]
[Round "6"]
[White "Zavgorodniy_Sergiy"]
[Black "nj123456"]
[Result "0-1"]
[WhiteElo "2644"]
[BlackElo "2417"]
[TimeControl "180+1"]
[EndTime "15:07:11 PST"]
[Termination "nj123456 won on time"]

1. d4 {[%clk 0:03:00.9]} 1... d5 {[%clk 0:02:59.6]} 2. c4 {[%clk 0:03:01.1]}
2... e6 {[%clk 0:02:59.6]} 3. Nf3 {[%clk 0:03:01.1]} 3... Nf6 {[%clk 0:02:59.4]}
4. e3 {[%clk 0:03:01.6]} 4... Be7 {[%clk 0:02:58.7]} 5. Nbd2 {[%clk 0:03:01.9]}
5... O-O {[%clk 0:02:59.3]} 6. Bd3 {[%clk 0:03:02]} 6... a6 {[%clk 0:02:58.5]}
7. O-O {[%clk 0:03:02.1]} 7... dxc4 {[%clk 0:02:58.9]} 8. Nxc4 {[%clk
0:03:02.4]} 8... b5 {[%clk 0:02:59.6]} 9. Ncd2 {[%clk 0:03:02.6]} 9... Bb7
{[%clk 0:02:59.5]} 10. a4 {[%clk 0:03:03]} 10... b4 {[%clk 0:02:52.8]} 11. b3
{[%clk 0:03:03.3]} 11... c5 {[%clk 0:02:51.1]} 12. Bb2 {[%clk 0:03:03.6]} 12...
Nc6 {[%clk 0:02:50.1]} 13. Qe2 {[%clk 0:03:02.2]} 13... cxd4 {[%clk 0:02:46.8]}
14. Nxd4 {[%clk 0:03:03.1]} 14... Nxd4 {[%clk 0:02:44.5]} 15. Bxd4 {[%clk
0:03:04]} 15... Qd5 {[%clk 0:02:40.2]} 16. Nf3 {[%clk 0:03:03.5]} 16... Qh5
{[%clk 0:02:28.9]} 17. Ne5 {[%clk 0:03:01]} 17... Qxe2 {[%clk 0:02:15.7]} 18.
Bxe2 {[%clk 0:03:01.9]} 18... Nd5 {[%clk 0:02:15.8]} 19. Rfc1 {[%clk 0:02:52.2]}
19... Rac8 {[%clk 0:02:12.4]} 20. Nc4 {[%clk 0:02:46.2]} 20... Bf6 {[%clk
0:02:08.3]} 21. Bxf6 {[%clk 0:02:38.5]} 21... Nxf6 {[%clk 0:01:59.8]} 22. Nd6
{[%clk 0:02:22.9]} 22... Rxc1+ {[%clk 0:02:00]} 23. Rxc1 {[%clk 0:02:23]} 23...
Bd5 {[%clk 0:02:00.5]} 24. Bc4 {[%clk 0:01:55.3]} 24... g6 {[%clk 0:01:52.3]}
25. Bxd5 {[%clk 0:01:53.1]} 25... Nxd5 {[%clk 0:01:53.2]} 26. Rc6 {[%clk
0:01:49.5]} 26... a5 {[%clk 0:01:31.7]} 27. e4 {[%clk 0:01:35.4]} 27... Nc3
{[%clk 0:01:29.9]} 28. Ra6 {[%clk 0:01:29.9]} 28... Rd8 {[%clk 0:01:16.5]} 29.
e5 {[%clk 0:01:30.2]} 29... Ne2+ {[%clk 0:01:11.3]} 30. Kf1 {[%clk 0:01:27.9]}
30... Nd4 {[%clk 0:01:11.9]} 31. Rxa5 {[%clk 0:01:24.7]} 31... Nxb3 {[%clk
0:01:10.3]} 32. Rb5 {[%clk 0:01:20.5]} 32... Nd4 {[%clk 0:00:58.2]} 33. Rb7
{[%clk 0:00:59.2]} 33... b3 {[%clk 0:00:57.5]} 34. Rb4 {[%clk 0:00:19.7]} 34...
Nc6 {[%clk 0:00:56.3]} 35. Rxb3 {[%clk 0:00:19]} 35... Nxe5 {[%clk 0:00:56.9]}
36. Nb5 {[%clk 0:00:17.9]} 36... Rd1+ {[%clk 0:00:55.7]} 37. Ke2 {[%clk
0:00:17.8]} 37... Ra1 {[%clk 0:00:56.6]} 38. Rb4 {[%clk 0:00:13.6]} 38... Nc6
{[%clk 0:00:54.6]} 39. Rc4 {[%clk 0:00:11.8]} 39... Ne7 {[%clk 0:00:54]} 40. Nc3
{[%clk 0:00:10.8]} 40... Ra3 {[%clk 0:00:53.2]} 41. Kd2 {[%clk 0:00:10.1]} 41...
Kg7 {[%clk 0:00:52.8]} 42. Kc2 {[%clk 0:00:09.5]} 42... Ra1 {[%clk 0:00:51]} 43.
Rd4 {[%clk 0:00:05.2]} 43... e5 {[%clk 0:00:47.2]} 44. Rd2 {[%clk 0:00:05.1]}
44... Nc6 {[%clk 0:00:45.6]} 45. Kb2 {[%clk 0:00:05.1]} 45... Rg1 {[%clk
0:00:45]} 46. g3 {[%clk 0:00:04.1]} 46... Nd4 {[%clk 0:00:45]} 47. h4 {[%clk
0:00:03.7]} 47... Nc6 {[%clk 0:00:27.9]} 48. Rd1 {[%clk 0:00:01.9]} 48... Na5
{[%clk 0:00:28.8]} 0-1

[Event "Late-Titled-Tuesday-Blitz-February-13-2024"]
[Site "Chess.com"]
[Date "2024.02.13"]
[Round "6"]
[White "ckgchess"]
[Black "Bigfish1995"]
[Result "0-1"]
[WhiteElo "2865"]
[BlackElo "3171"]
[TimeControl "180+1"]
[EndTime "15:07:13 PST"]
[Termination "Bigfish1995 won on time"]

1. e4 {[%clk 0:03:00.9]} 1... c6 {[%clk 0:02:57.7]} 2. d4 {[%clk 0:02:59.1]}
2... d5 {[%clk 0:02:57.1]} 3. e5 {[%clk 0:02:59.4]} 3... Bf5 {[%clk 0:02:56.1]}
4. h4 {[%clk 0:02:59.5]} 4... h5 {[%clk 0:02:55.1]} 5. c4 {[%clk 0:02:59]} 5...
e6 {[%clk 0:02:54]} 6. Nc3 {[%clk 0:02:59.6]} 6... Ne7 {[%clk 0:02:53.1]} 7.
Nge2 {[%clk 0:02:56.3]} 7... Nd7 {[%clk 0:02:49]} 8. Ng3 {[%clk 0:02:55]} 8...
Bg4 {[%clk 0:02:48.1]} 9. f3 {[%clk 0:02:54]} 9... Bf5 {[%clk 0:02:47.3]} 10.
cxd5 {[%clk 0:02:37]} 10... exd5 {[%clk 0:02:46.3]} 11. Bg5 {[%clk 0:02:29.3]}
11... f6 {[%clk 0:02:43.6]} 12. Nxf5 {[%clk 0:02:18.7]} 12... Nxf5 {[%clk
0:02:42.5]} 13. Bd3 {[%clk 0:02:09.6]} 13... fxg5 {[%clk 0:02:33.4]} 14. Bxf5
{[%clk 0:02:09.4]} 14... Rh6 {[%clk 0:02:31.8]} 15. Qd3 {[%clk 0:01:55.7]} 15...
Qe7 {[%clk 0:02:21.6]} 16. O-O-O {[%clk 0:01:28.4]} 16... O-O-O {[%clk
0:02:17.1]} 17. Kb1 {[%clk 0:01:11.3]} 17... Kb8 {[%clk 0:02:13.9]} 18. g3
{[%clk 0:00:53.9]} 18... gxh4 {[%clk 0:02:08]} 19. gxh4 {[%clk 0:00:53.9]} 19...
Nb6 {[%clk 0:02:05.6]} 20. f4 {[%clk 0:00:50.3]} 20... Qf7 {[%clk 0:01:56.3]}
21. Rhf1 {[%clk 0:00:41.7]} 21... Be7 {[%clk 0:01:42.9]} 22. Bh3 {[%clk
0:00:42]} 22... g6 {[%clk 0:01:43.2]} 23. Qg3 {[%clk 0:00:34.6]} 23... Ka8
{[%clk 0:01:38.5]} 24. f5 {[%clk 0:00:22.6]} 24... gxf5 {[%clk 0:01:36.1]} 25.
Bxf5 {[%clk 0:00:22.7]} 25... Rhh8 {[%clk 0:01:30.3]} 26. Bd3 {[%clk 0:00:22]}
26... Qg8 {[%clk 0:01:25.8]} 27. Qxg8 {[%clk 0:00:17.5]} 27... Rdxg8 {[%clk
0:01:26.7]} 28. Rf4 {[%clk 0:00:13.8]} 28... a5 {[%clk 0:01:18.6]} 29. Ne2
{[%clk 0:00:12.9]} 29... Rg2 {[%clk 0:01:14.7]} 30. Rdf1 {[%clk 0:00:11.4]}
30... Ka7 {[%clk 0:01:14.8]} 31. b3 {[%clk 0:00:08.4]} 31... Rh2 {[%clk
0:01:07.5]} 32. Rf7 {[%clk 0:00:07.1]} 32... Bxh4 {[%clk 0:01:06.7]} 33. Rg7
{[%clk 0:00:06.2]} 33... Rf2 {[%clk 0:00:57.6]} 34. Rh1 {[%clk 0:00:03.7]} 34...
Bd8 {[%clk 0:00:56.9]} 35. Ng3 {[%clk 0:00:04.4]} 35... h4 {[%clk 0:00:31.2]}
36. Nf5 {[%clk 0:00:04.9]} 36... Nc8 {[%clk 0:00:31.1]} 37. e6 {[%clk
0:00:04.5]} 37... Re8 {[%clk 0:00:24.4]} 38. Re1 {[%clk 0:00:05.1]} 38... h3
{[%clk 0:00:23.2]} 39. Rh7 {[%clk 0:00:05.6]} 39... h2 {[%clk 0:00:22.5]} 40.
Rh6 {[%clk 0:00:03]} 40... Bg5 {[%clk 0:00:21.4]} 41. Rh5 {[%clk 0:00:02.5]}
41... Bf4 {[%clk 0:00:20.5]} 42. Bc2 {[%clk 0:00:02.4]} 42... Ne7 {[%clk
0:00:20.7]} 43. Nxe7 {[%clk 0:00:01.5]} 43... Rxe7 {[%clk 0:00:21]} 44. Rf5
{[%clk 0:00:01.2]} 44... Rxe6 {[%clk 0:00:19.6]} 0-1

[Event "Late-Titled-Tuesday-Blitz-February-13-2024"]
[Site "Chess.com"]
[Date "2024.02.13"]
[Round "6"]
[White "FontVella8"]
[Black "Rawnsdale"]
[Result "1-0"]
[WhiteElo "2710"]
[BlackElo "2528"]
[TimeControl "180+1"]
[EndTime "15:07:14 PST"]
[Termination "FontVella8 won by resignation"]

1. Nf3 {[%clk 0:03:00.9]} 1... Nf6 {[%clk 0:02:59.5]} 2. c4 {[%clk 0:03:00.8]}
2... e6 {[%clk 0:02:59.8]} 3. g3 {[%clk 0:03:01.3]} 3... d5 {[%clk 0:03:00.3]}
4. Bg2 {[%clk 0:03:02.2]} 4... Be7 {[%clk 0:03:00.6]} 5. O-O {[%clk 0:03:02.2]}
5... O-O {[%clk 0:03:01.1]} 6. b3 {[%clk 0:03:01.6]} 6... Nbd7 {[%clk
0:03:00.6]} 7. Bb2 {[%clk 0:03:02.1]} 7... b6 {[%clk 0:02:59.9]} 8. e3 {[%clk
0:03:02]} 8... Bb7 {[%clk 0:03:00.2]} 9. d4 {[%clk 0:03:02.3]} 9... dxc4 {[%clk
0:02:59.1]} 10. bxc4 {[%clk 0:03:02.4]} 10... c5 {[%clk 0:02:59.7]} 11. d5
{[%clk 0:02:57.9]} 11... exd5 {[%clk 0:02:55.4]} 12. Nh4 {[%clk 0:02:58.1]}
12... Ne4 {[%clk 0:02:49.5]} 13. cxd5 {[%clk 0:02:41.8]} 13... Ndf6 {[%clk
0:02:44]} 14. Nf5 {[%clk 0:02:10.2]} 14... Nd6 {[%clk 0:02:37.1]} 15. Nxe7+
{[%clk 0:02:01.1]} 15... Qxe7 {[%clk 0:02:36.8]} 16. Nc3 {[%clk 0:01:55.7]}
16... Rad8 {[%clk 0:02:35.2]} 17. e4 {[%clk 0:01:50.6]} 17... Nc4 {[%clk
0:02:04.3]} 18. Qe2 {[%clk 0:01:40.2]} 18... Nxb2 {[%clk 0:01:59.6]} 19. Qxb2
{[%clk 0:01:38.9]} 19... Ng4 {[%clk 0:01:54.9]} 20. Rad1 {[%clk 0:01:35.7]}
20... f5 {[%clk 0:01:52.3]} 21. h3 {[%clk 0:01:31.2]} 21... Ne5 {[%clk
0:01:50.3]} 22. exf5 {[%clk 0:01:29.6]} 22... Rxf5 {[%clk 0:01:50]} 23. Rfe1
{[%clk 0:01:13.8]} 23... Qf7 {[%clk 0:01:45.3]} 24. f4 {[%clk 0:01:06.7]} 24...
Nc4 {[%clk 0:01:33]} 25. Qb3 {[%clk 0:01:05.4]} 25... Nd6 {[%clk 0:01:30.8]} 26.
Re5 {[%clk 0:01:01.2]} 26... g5 {[%clk 0:01:21.6]} 27. g4 {[%clk 0:00:27.4]}
27... Rxf4 {[%clk 0:01:09.5]} 28. Rxg5+ {[%clk 0:00:27.5]} 28... Kh8 {[%clk
0:01:09.9]} 29. Ne2 {[%clk 0:00:24.9]} 29... Rf6 {[%clk 0:00:56.6]} 30. Ng3
{[%clk 0:00:21.5]} 30... Rg6 {[%clk 0:00:41.7]} 31. Qc3+ {[%clk 0:00:19.4]}
31... Kg8 {[%clk 0:00:41.6]} 32. Nf5 {[%clk 0:00:13.9]} 32... Nxf5 {[%clk
0:00:33.9]} 33. Rxf5 {[%clk 0:00:13.2]} 33... Qg7 {[%clk 0:00:34.4]} 34. Qf3
{[%clk 0:00:11.2]} 34... Rgd6 {[%clk 0:00:32.1]} 35. Qf4 {[%clk 0:00:08.7]}
35... h6 {[%clk 0:00:32.4]} 36. Kh2 {[%clk 0:00:05.7]} 36... b5 {[%clk
0:00:24.6]} 37. Be4 {[%clk 0:00:06.1]} 37... c4 {[%clk 0:00:23.7]} 38. g5 {[%clk
0:00:06.3]} 38... h5 {[%clk 0:00:23.7]} 39. Rf6 {[%clk 0:00:04.6]} 39... Rxf6
{[%clk 0:00:18.4]} 40. gxf6 {[%clk 0:00:04.6]} 40... Qh8 {[%clk 0:00:15.3]} 41.
Rg1+ {[%clk 0:00:05.1]} 41... Kf8 {[%clk 0:00:15.7]} 42. Qe5 {[%clk 0:00:02.9]}
42... Rd7 {[%clk 0:00:14.1]} 43. Qb8+ {[%clk 0:00:03]} 43... Kf7 {[%clk
0:00:12.2]} 44. Qxh8 {[%clk 0:00:03.9]} 1-0

[Event "Late-Titled-Tuesday-Blitz-February-13-2024"]
[Site "Chess.com"]
[Date "2024.02.13"]
[Round "6"]
[White "NikolaGry"]
[Black "mjelcic"]
[Result "1-0"]
[WhiteElo "2718"]
[BlackElo "2226"]
[TimeControl "180+1"]
[EndTime "15:07:14 PST"]
[Termination "NikolaGry won on time"]

1. d4 {[%clk 0:03:00.9]} 1... Nf6 {[%clk 0:02:52.5]} 2. Bg5 {[%clk 0:02:58.9]}
2... Ne4 {[%clk 0:02:51.7]} 3. h4 {[%clk 0:02:58.4]} 3... h6 {[%clk 0:02:48.6]}
4. Bf4 {[%clk 0:02:56.6]} 4... c5 {[%clk 0:02:48.7]} 5. dxc5 {[%clk 0:02:42.8]}
5... Qa5+ {[%clk 0:02:44.1]} 6. Nd2 {[%clk 0:02:41.1]} 6... Nc6 {[%clk
0:02:39.3]} 7. c3 {[%clk 0:02:35.4]} 7... Nxd2 {[%clk 0:02:38.3]} 8. b4 {[%clk
0:02:26.4]} 8... Qa3 {[%clk 0:02:07.3]} 9. Qxd2 {[%clk 0:02:07.8]} 9... g6
{[%clk 0:02:05.1]} 10. Rb1 {[%clk 0:01:56.3]} 10... Bg7 {[%clk 0:02:01.5]} 11.
Rb3 {[%clk 0:01:54.7]} 11... Qa4 {[%clk 0:01:57.4]} 12. Nf3 {[%clk 0:01:43.7]}
12... b5 {[%clk 0:01:50.8]} 13. e3 {[%clk 0:01:33.2]} 13... a5 {[%clk 0:01:24]}
14. bxa5 {[%clk 0:00:43]} 14... Rxa5 {[%clk 0:01:24.9]} 15. Be2 {[%clk
0:00:34.3]} 15... Qxa2 {[%clk 0:01:22.3]} 16. Qd1 {[%clk 0:00:26]} 16... Qa4
{[%clk 0:00:52.5]} 17. O-O {[%clk 0:00:23.5]} 17... O-O {[%clk 0:00:52]} 18. Bg3
{[%clk 0:00:18.7]} 18... Bb7 {[%clk 0:00:44.5]} 19. Nd4 {[%clk 0:00:18.1]} 19...
Nxd4 {[%clk 0:00:35]} 20. cxd4 {[%clk 0:00:17.5]} 20... Bd5 {[%clk 0:00:34.7]}
21. Rxb5 {[%clk 0:00:16.6]} 21... Qxd1 {[%clk 0:00:27]} 22. Rxd1 {[%clk
0:00:16.2]} 22... Ra2 {[%clk 0:00:24.8]} 23. Bf3 {[%clk 0:00:15.4]} 23... Bxf3
{[%clk 0:00:19.3]} 24. gxf3 {[%clk 0:00:15.2]} 24... Ra7 {[%clk 0:00:08.6]} 25.
Rdb1 {[%clk 0:00:14.5]} 25... Rd8 {[%clk 0:00:08.5]} 26. Rb7 {[%clk 0:00:14.2]}
26... Rda8 {[%clk 0:00:07.7]} 27. Rb8+ {[%clk 0:00:13.3]} 27... Kh7 {[%clk
0:00:07.3]} 28. Rxa8 {[%clk 0:00:12.7]} 28... Rxa8 {[%clk 0:00:07.8]} 29. Rb7
{[%clk 0:00:12.4]} 29... Ra1+ {[%clk 0:00:07.8]} 30. Kg2 {[%clk 0:00:11.9]}
30... d6 {[%clk 0:00:07.1]} 31. cxd6 {[%clk 0:00:09.9]} 31... exd6 {[%clk
0:00:08]} 32. Rxf7 {[%clk 0:00:09.3]} 32... Kg8 {[%clk 0:00:08.2]} 33. Rd7
{[%clk 0:00:09.2]} 33... d5 {[%clk 0:00:06.6]} 34. Rxd5 {[%clk 0:00:08.6]} 34...
Kf7 {[%clk 0:00:06.4]} 35. Rd7+ {[%clk 0:00:08.3]} 35... Kg8 {[%clk 0:00:06.5]}
36. Be5 {[%clk 0:00:08]} 36... Bf8 {[%clk 0:00:05.7]} 37. f4 {[%clk 0:00:07.9]}
37... Ra5 {[%clk 0:00:05.2]} 38. Rc7 {[%clk 0:00:07.3]} 38... Ra6 {[%clk
0:00:02.9]} 39. Kf3 {[%clk 0:00:07.1]} 1-0

[Event "Late-Titled-Tuesday-Blitz-February-13-2024"]
[Site "Chess.com"]
[Date "2024.02.13"]
[Round "6"]
[White "Msb2"]
[Black "dretch"]
[Result "1-0"]
[WhiteElo "3021"]
[BlackElo "2885"]
[TimeControl "180+1"]
[EndTime "15:07:16 PST"]
[Termination "Msb2 won on time"]

1. d4 {[%clk 0:03:00.9]} 1... d5 {[%clk 0:02:59.9]} 2. c4 {[%clk 0:03:01.6]}
2... c6 {[%clk 0:03:00]} 3. Nf3 {[%clk 0:03:02.3]} 3... Nf6 {[%clk 0:03:00.1]}
4. Nc3 {[%clk 0:03:03]} 4... dxc4 {[%clk 0:03:00.2]} 5. e4 {[%clk 0:03:03.6]}
5... b5 {[%clk 0:03:00.2]} 6. Qc2 {[%clk 0:03:04.4]} 6... e6 {[%clk 0:02:52.1]}
7. Be2 {[%clk 0:03:04.5]} 7... Nbd7 {[%clk 0:02:44.3]} 8. O-O {[%clk 0:03:04.4]}
8... Bb7 {[%clk 0:02:43.8]} 9. b3 {[%clk 0:03:05]} 9... b4 {[%clk 0:02:40]} 10.
e5 {[%clk 0:03:05.5]} 10... Nd5 {[%clk 0:02:38]} 11. Bg5 {[%clk 0:03:05.7]}
11... Qc7 {[%clk 0:01:50.7]} 12. Nxd5 {[%clk 0:03:04.8]} 12... cxd5 {[%clk
0:01:49]} 13. bxc4 {[%clk 0:03:05.5]} 13... dxc4 {[%clk 0:01:48]} 14. Bxc4
{[%clk 0:03:06.4]} 14... h6 {[%clk 0:01:41.7]} 15. Bh4 {[%clk 0:03:05.5]} 15...
g5 {[%clk 0:00:54.8]} 16. Bg3 {[%clk 0:03:02.4]} 16... Be7 {[%clk 0:00:53.6]}
17. Rac1 {[%clk 0:02:57.9]} 17... h5 {[%clk 0:00:24.1]} 18. Qb3 {[%clk
0:02:26.5]} 18... Qb6 {[%clk 0:00:19.7]} 19. d5 {[%clk 0:02:19.6]} 19... Nc5
{[%clk 0:00:18.8]} 20. Qb1 {[%clk 0:01:34.9]} 20... exd5 {[%clk 0:00:18.7]} 21.
Be2 {[%clk 0:01:35.6]} 21... h4 {[%clk 0:00:19.1]} 22. Nd4 {[%clk 0:01:31.6]}
22... hxg3 {[%clk 0:00:19]} 23. Bb5+ {[%clk 0:01:19.1]} 23... Kf8 {[%clk
0:00:18.8]} 24. Qf5 {[%clk 0:00:52.5]} 24... Ne6 {[%clk 0:00:11.9]} 25. fxg3
{[%clk 0:00:43.9]} 25... Qxd4+ {[%clk 0:00:10.6]} 26. Kh1 {[%clk 0:00:44]} 26...
Nd8 {[%clk 0:00:09.6]} 27. Rc7 {[%clk 0:00:42]} 27... Qe4 {[%clk 0:00:06.3]} 28.
Qf2 {[%clk 0:00:25.4]} 28... d4 {[%clk 0:00:06.5]} 29. Rxb7 {[%clk 0:00:16.1]}
29... Qxb7 {[%clk 0:00:06.2]} 30. Bc4 {[%clk 0:00:16.8]} 30... Bc5 {[%clk
0:00:05.8]} 31. Qf6 {[%clk 0:00:16.1]} 31... Rh7 {[%clk 0:00:05.4]} 32. e6
{[%clk 0:00:16.6]} 32... Qe7 {[%clk 0:00:05.5]} 33. Qf5 {[%clk 0:00:17.3]} 33...
f6 {[%clk 0:00:04.3]} 34. Qxg5 {[%clk 0:00:12.4]} 34... Rg7 {[%clk 0:00:02]} 35.
Rxf6+ {[%clk 0:00:12.7]} 35... Kg8 {[%clk 0:00:02.5]} 36. Qf5 {[%clk 0:00:12.6]}
36... Bd6 {[%clk 0:00:01.5]} 37. Bd3 {[%clk 0:00:12.9]} 37... Nxe6 {[%clk
0:00:01.2]} 38. Rxe6 {[%clk 0:00:13.3]} 38... Rf8 {[%clk 0:00:01.7]} 39. Qd5
{[%clk 0:00:12]} 39... Qf7 {[%clk 0:00:01]} 40. h4 {[%clk 0:00:08.7]} 40... Bb8
{[%clk 0:00:01.1]} 41. Bc4 {[%clk 0:00:06.9]} 1-0

[Event "Late-Titled-Tuesday-Blitz-February-13-2024"]
[Site "Chess.com"]
[Date "2024.02.13"]
[Round "6"]
[White "andjela_djidjika"]
[Black "Hirna2005"]
[Result "1-0"]
[WhiteElo "2127"]
[BlackElo "2292"]
[TimeControl "180+1"]
[EndTime "15:07:16 PST"]
[Termination "andjela_djidjika won on time"]

1. e4 {[%clk 0:03:00.9]} 1... g6 {[%clk 0:03:00.6]} 2. h4 {[%clk 0:02:57.1]}
2... d5 {[%clk 0:02:59.2]} 3. exd5 {[%clk 0:02:55.5]} 3... Qxd5 {[%clk
0:02:59.3]} 4. Nc3 {[%clk 0:02:56.3]} 4... Qa5 {[%clk 0:02:59.3]} 5. d4 {[%clk
0:02:55]} 5... Nf6 {[%clk 0:02:55.2]} 6. Nf3 {[%clk 0:02:52.1]} 6... Bg4 {[%clk
0:02:54]} 7. Be2 {[%clk 0:02:49.7]} 7... Nc6 {[%clk 0:02:51.8]} 8. Bd2 {[%clk
0:02:44.4]} 8... O-O-O {[%clk 0:02:42.5]} 9. Nb5 {[%clk 0:02:24.4]} 9... Qb6
{[%clk 0:02:38.2]} 10. c3 {[%clk 0:02:23.3]} 10... e5 {[%clk 0:02:23.2]} 11.
Nxe5 {[%clk 0:02:13.5]} 11... Nxe5 {[%clk 0:02:19.4]} 12. dxe5 {[%clk
0:02:11.8]} 12... Ne4 {[%clk 0:02:16.7]} 13. Bxg4+ {[%clk 0:02:07.9]} 13... Kb8
{[%clk 0:02:16.8]} 14. Nd4 {[%clk 0:02:04.1]} 14... c5 {[%clk 0:01:58.4]} 15.
Nf3 {[%clk 0:02:00.4]} 15... h5 {[%clk 0:01:49.1]} 16. Bh3 {[%clk 0:01:58.3]}
16... Bh6 {[%clk 0:01:46]} 17. O-O {[%clk 0:01:44.1]} 17... Nxd2 {[%clk
0:01:42.9]} 18. Nxd2 {[%clk 0:01:44.7]} 18... Rxd2 {[%clk 0:01:42.9]} 19. Qf3
{[%clk 0:01:43.3]} 19... Rf8 {[%clk 0:01:28.6]} 20. b4 {[%clk 0:01:31.3]} 20...
c4 {[%clk 0:01:24.2]} 21. a4 {[%clk 0:01:27.8]} 21... Rd3 {[%clk 0:01:18.5]} 22.
Qe4 {[%clk 0:01:19.6]} 22... Rxc3 {[%clk 0:01:12]} 23. e6 {[%clk 0:01:14]} 23...
fxe6 {[%clk 0:00:42.8]} 24. Qe5+ {[%clk 0:01:12.9]} 24... Qc7 {[%clk 0:00:39.9]}
25. Qxc3 {[%clk 0:01:10.6]} 25... Bg7 {[%clk 0:00:38.8]} 26. Qc2 {[%clk
0:01:03.4]} 26... Bxa1 {[%clk 0:00:38.2]} 27. Rxa1 {[%clk 0:01:03.9]} 27... a6
{[%clk 0:00:35.1]} 28. b5 {[%clk 0:01:00.5]} 28... Rf4 {[%clk 0:00:32.8]} 29.
bxa6 {[%clk 0:00:53.8]} 29... bxa6 {[%clk 0:00:27.4]} 30. Rb1+ {[%clk
0:00:53.9]} 30... Ka7 {[%clk 0:00:27]} 31. Bxe6 {[%clk 0:00:51]} 31... Rxh4
{[%clk 0:00:26.8]} 32. Qc3 {[%clk 0:00:48.7]} 32... Qh2+ {[%clk 0:00:24.7]} 33.
Kf1 {[%clk 0:00:45.2]} 33... Qh1+ {[%clk 0:00:24.8]} 34. Ke2 {[%clk 0:00:43.9]}
34... Re4+ {[%clk 0:00:20.1]} 35. Kf3 {[%clk 0:00:41.1]} 35... Qxb1 {[%clk
0:00:20.8]} 36. Qg7+ {[%clk 0:00:37.6]} 36... Kb6 {[%clk 0:00:20.5]} 37. a5+
{[%clk 0:00:36.1]} 37... Kxa5 {[%clk 0:00:18.6]} 38. Qc7+ {[%clk 0:00:35.6]}
38... Ka4 {[%clk 0:00:18.2]} 39. Qc6+ {[%clk 0:00:32.8]} 39... Ka3 {[%clk
0:00:11.9]} 40. Qxa6+ {[%clk 0:00:25.9]} 40... Kb2 {[%clk 0:00:07.2]} 41. Qb6+
{[%clk 0:00:24.9]} 41... Kc3 {[%clk 0:00:04.9]} 42. Qxb1 {[%clk 0:00:25.8]}
42... Rxe6 {[%clk 0:00:04.5]} 43. Qc1+ {[%clk 0:00:23.4]} 43... Kd4 {[%clk
0:00:04.4]} 44. Qd1+ {[%clk 0:00:20.8]} 44... Kc5 {[%clk 0:00:04.5]} 45. Qc2
{[%clk 0:00:20.6]} 45... Rf6+ {[%clk 0:00:03.3]} 46. Kg3 {[%clk 0:00:20.8]}
46... g5 {[%clk 0:00:02.6]} 47. f3 {[%clk 0:00:20.5]} 1-0